bitfinex/quotes_SOLUSD_20241218
["timestamp","ask_amount","ask_price","bid_price","bid_amount"]
[1734500487005,0.73665215,217.45,217.41,7.15794175]
[1734500487502,0.73665215,217.47,217.41,7.15794175]
[1734500488515,7.8945939,217.47,217.41,7.15794175]
[1734500489295,0.73665215,217.47,217.41,7.15794175]
[1734500489505,7.15794175,217.48,217.42,7.15794175]
[1734500489711,0.73665215,217.47,217.42,7.15794175]
[1734500489924,0.73665215,217.47,217.43,7.15794175]
[1734500490519,0.73665215,217.47,217.42,7.15794175]
[1734500490736,7.8945939,217.48,217.42,7.15794175]
[1734500492697,0.73665215,217.48,217.43,7.15794175]
[1734500493727,0.73665215,217.49,217.43,7.15794175]
[1734500493895,0.73665215,217.49,217.44,7.15794175]
[1734500494413,0.73665215,217.49,217.43,7.15794175]
[1734500495020,7.8945939,217.49,217.42,7.15794175]
[1734500495530,7.15794175,217.48,217.38,11.5005]
[1734500495730,0.73665215,217.47,217.41,7.15794175]
[1734500497518,7.8945939,217.47,217.41,7.15794175]
[1734500498315,0.73665215,217.47,217.41,7.15794175]
[1734500500626,7.15794175,217.46,217.4,7.15794175]
[1734500500819,0.73665215,217.45,217.4,7.15794175]
[1734500501019,0.73665215,217.45,217.39,7.15794175]
[1734500501226,0.73665215,217.45,217.4,7.15794175]
[1734500503108,7.15794175,217.41,217.33,9.0064]
[1734500503306,44.635967,217.47,217.28,8.5872]
[1734500503307,7.15794175,217.37,217.28,8.5872]
[1734500503508,7.8945939,217.36,217.3,7.15794175]
[1734500503726,7.15794175,217.35,217.29,7.15794175]
[1734500503918,0.73665215,217.34,217.29,7.15794175]
[1734500504632,0.73665215,217.34,217.28,8.5872]
[1734500504849,0.73665215,217.34,217.29,7.15794175]
[1734500506841,7.8945939,217.34,217.28,15.74514175]
[1734500507035,7.8945939,217.34,217.28,7.15794175]
[1734500510812,0.73665215,217.34,217.28,7.15794175]
[1734500512238,0.73665215,217.34,217.29,7.15794175]
[1734500512623,0.73665215,217.34,217.28,7.15794175]
[1734500517035,0.73665215,217.34,217.29,7.15794175]
[1734500519631,7.8945939,217.34,217.28,7.15794175]
[1734500521775,7.15794175,217.33,217.27,7.15794175]
[1734500521925,0.73665215,217.32,217.27,7.15794175]
[1734500523038,0.73665215,217.33,217.27,7.15794175]
[1734500525740,0.73665215,217.33,217.23,8.5872]
[1734500525741,7.15794175,217.3,217.23,8.5872]
[1734500526051,0.73665215,217.29,217.24,7.15794175]
[1734500526623,0.73665215,217.29,217.26,7.15794175]
[1734500526841,7.8945939,217.35,217.28,7.15794175]
[1734500527036,7.8945939,217.35,217.29,7.15794175]
[1734500527247,7.8945939,217.35,217.3,7.15794175]
[1734500527248,0.73665215,217.35,217.3,7.15794175]
[1734500527446,7.8945939,217.35,217.29,7.15794175]
[1734500527626,7.15794175,217.34,217.29,7.15794175]
[1734500527832,0.73665215,217.33,217.28,7.15794175]
[1734500530036,0.73665215,217.33,217.24,12.19843427]
[1734500530037,7.8945939,217.33,217.27,7.15794175]
[1734500534845,0.73665215,217.33,217.28,7.15794175]
[1734500535046,7.15794175,217.34,217.28,7.15794175]
[1734500535271,0.73665215,217.33,217.28,7.15794175]
[1734500536356,0.73665215,217.34,217.28,7.15794175]
[1734500536568,7.8945939,217.34,217.28,7.15794175]
[1734500539777,7.8945939,217.34,217.27,7.15794175]
[1734500543070,0.73665215,217.34,217.27,7.15794175]
[1734500543380,7.15794175,217.35,217.28,7.15794175]
[1734500543559,7.8945939,217.34,217.27,7.15794175]
[1734500544477,7.15794175,217.33,217.27,7.15794175]
[1734500544768,0.73665215,217.32,217.27,7.15794175]
[1734500545273,7.15794175,217.34,217.27,7.15794175]
[1734500545454,0.73665215,217.33,217.27,7.15794175]
[1734500545649,0.73665215,217.36,217.31,7.15794175]
[1734500545856,0.73665215,217.36,217.32,7.15794175]
[1734500546064,0.73665215,217.38,217.33,7.15794175]
[1734500546585,0.73665215,217.38,217.32,7.15794175]
[1734500549275,7.8945939,217.38,217.29,20.0]
[1734500549454,7.15794175,217.37,217.3,7.15794175]
[1734500549653,0.73665215,217.36,217.3,7.15794175]
[1734500550270,0.73665215,217.36,217.31,7.15794175]
[1734500550473,7.8945939,217.36,217.29,31.5053]
[1734500550671,7.8945939,217.36,217.3,7.15794175]
[1734500550869,0.73665215,217.36,217.3,7.15794175]
[1734500551790,0.73665215,217.36,217.29,11.5053]
[1734500551994,0.73665215,217.36,217.3,7.15794175]
[1734500554576,7.15794175,217.33,217.28,11.5058]
[1734500554779,7.15794175,217.31,217.25,7.15794175]
[1734500555017,7.18382491,217.4,217.24,11.5075]
[1734500555018,7.8945939,217.3,217.24,11.5075]
[1734500555924,7.15794175,217.29,217.23,15.74514175]
[1734500556225,7.15794175,217.3,217.23,15.74514175]
[1734500556379,0.68123014,217.29,217.23,15.74514175]
[1734500556584,0.68123014,217.29,217.25,7.15794175]
[1734500557463,0.68123014,217.3,217.25,7.15794175]
[1734500559012,7.15794175,217.29,217.21,0.69042297]
[1734500559316,0.68123014,217.28,217.23,7.15794175]
[1734500559812,0.68123014,217.28,217.24,7.15794175]
[1734500560188,0.68123014,217.29,217.24,7.15794175]
[1734500560905,0.68123014,217.29,217.2,12.20003465]
[1734500561227,0.68123014,217.29,217.23,7.15794175]
[1734500563220,0.68123014,217.29,217.2,12.20003465]
[1734500563221,7.15794175,217.27,217.2,11.5096]
[1734500563519,7.15794175,217.27,217.21,7.15794175]
[1734500564592,7.15794175,217.22,217.11,6.3028]
[1734500564795,52.408651,217.25,217.11,6.3028]
[1734500564796,7.15794175,217.17,217.11,6.3028]
[1734500565108,0.68123014,217.16,217.11,13.46074175]
[1734500565903,7.83917189,217.16,217.11,13.46074175]
[1734500566203,7.15794175,217.12,217.08,0.5685432]
[1734500566409,2.2862,217.19,217.08,0.5685432]
[1734500566410,7.15794175,217.1,217.08,0.5685432]
[1734500566612,7.83917189,217.09,217.08,0.5685432]
[1734500566789,0.68123014,217.09,217.08,0.5685432]
[1734500566992,7.15794175,217.11,217.08,0.5685432]
[1734500567194,0.68123014,217.1,217.08,0.5685432]
[1734500568020,7.15794175,217.09,217.08,0.5685432]
[1734500569019,7.15794175,217.09,216.87,8.4899]
[1734500569020,23.776884,217.05,216.87,8.4899]
[1734500569202,27.15794175,217.02,216.96,7.15794175]
[1734500569407,0.68123014,217.01,216.96,7.15794175]
[1734500569630,0.68123014,217.01,216.95,7.15794175]
[1734500570423,7.83917189,217.01,216.95,7.15794175]
[1734500571026,7.15794175,217.0,216.94,7.15794175]
[1734500571227,20.0,217.06,216.95,7.15794175]
[1734500571529,20.0,217.06,216.91,20.0]
[1734500571530,7.15794175,217.03,216.97,7.15794175]
[1734500571830,20.0,217.06,216.93,0.69127501]
[1734500571831,7.15794175,216.98,216.93,0.69127501]
[1734500572014,20.0,217.06,216.68,10.0]
[1734500572015,20.0,216.94,216.68,10.0]
[1734500572233,2.1487,216.83,216.68,10.0]
[1734500572532,13.81,216.81,216.68,10.0]
[1734500572747,7.15794175,216.69,216.64,0.5685432]
[1734500572957,0.68123014,216.68,216.64,0.5685432]
[1734500573101,30.93482575,216.65,216.64,0.5685432]
[1734500573305,34.3173248,216.65,216.64,0.5685432]
[1734500573727,34.99855494,216.65,216.64,0.5685432]
[1734500574042,23.776884,216.64,216.43,0.5685432]
[1734500574208,11.25609782,216.49,216.43,0.5685432]
[1734500574407,3.38249905,216.48,216.43,0.5685432]
[1734500574612,3.38249905,216.47,216.43,0.5685432]
[1734500574842,31.854784,216.64,215.62,9.67664687]
[1734500574843,35.03298182,216.45,215.77,0.5685432]
[1734500575015,11.25609782,216.39,216.09,143.94708754]
[1734500575219,4.06372919,216.38,216.25,6.21908496]
[1734500575420,3.34298023,216.37,216.23,56.51917662]
[1734500575729,11.25609782,216.34,216.26,11.25609782]
[1734500576036,3.34298023,216.33,216.28,11.25609782]
[1734500576208,0.68123014,216.32,216.3,11.25609782]
[1734500576412,2.78747738,216.36,216.18,6.71173876]
[1734500576614,4.00707184,216.35,216.34,11.25609782]
[1734500576921,0.68123014,216.35,216.34,11.25609782]
[1734500577117,11.93732796,216.47,216.34,11.25609782]
[1734500577314,0.68123014,216.47,216.41,11.25609782]
[1734500577612,2.70628334,216.53,216.45,11.25609782]
[1734500577830,0.68123014,216.52,216.37,11.25609782]
[1734500578034,0.68123014,216.58,216.51,18.00050013]
[1734500578347,0.68123014,216.58,216.53,18.00050013]
[1734500578633,18.68173027,216.6,216.51,18.00050013]
[1734500578805,0.68123014,216.59,216.51,18.00050013]
[1734500579013,0.68123014,216.59,216.53,18.00050013]
[1734500579228,0.68123014,216.59,216.51,18.00050013]
[1734500579962,0.68123014,216.59,216.55,18.00050013]
[1734500580118,0.68123014,216.63,216.57,18.00050013]
[1734500580319,18.00050013,216.62,216.53,18.00050013]
[1734500580535,0.68123014,216.61,216.53,18.00050013]
[1734500580712,0.68123014,216.61,216.55,18.00050013]
[1734500581043,18.00050013,216.64,216.51,0.69261718]
[1734500581223,0.68123014,216.63,216.54,18.00050013]
[1734500581615,0.68123014,216.63,216.56,18.00050013]
[1734500582237,0.68123014,216.63,216.54,18.00050013]
[1734500582421,18.00050013,216.62,216.54,18.00050013]
[1734500582620,0.68123014,216.61,216.54,18.00050013]
[1734500582821,0.68123014,216.63,216.54,18.00050013]
[1734500585123,23.776884,216.62,216.54,18.00050013]
[1734500585324,18.00050013,216.68,216.58,18.00050013]
[1734500585523,0.68123014,216.67,216.62,18.00050013]
[1734500585739,0.68123014,216.69,216.62,18.00050013]
[1734500585924,18.00050013,216.66,216.58,18.00050013]
[1734500586129,0.68123014,216.65,216.58,18.00050013]
[1734500586917,0.68123014,216.65,216.6,18.00050013]
[1734500587238,24.45811414,216.67,216.6,18.00050013]
[1734500587750,18.00050013,216.64,216.54,18.00050013]
[1734500588057,23.776884,216.59,216.52,18.00050013]
[1734500588236,0.68123014,216.58,216.52,18.00050013]
[1734500588637,23.776884,216.57,216.52,18.00050013]
[1734500588830,23.776884,216.61,216.46,11.549]
[1734500588831,23.776884,216.61,216.54,18.00050013]
[1734500589041,23.776884,216.59,216.54,18.00050013]
[1734500589241,0.68123014,216.58,216.54,18.00050013]
[1734500590033,0.68123014,216.69,216.56,18.00050013]
[1734500590246,18.00050013,216.65,216.57,18.00050013]
[1734500590443,18.00050013,216.63,216.55,18.00050013]
[1734500590754,0.68123014,216.62,216.55,18.00050013]
[1734500590954,18.00050013,216.67,216.59,18.00050013]
[1734500591145,18.00050013,216.71,216.63,18.00050013]
[1734500591333,0.68123014,216.7,216.63,18.00050013]
[1734500591531,0.68123014,216.7,216.65,18.00050013]
[1734500592029,0.68123014,216.7,216.63,18.00050013]
[1734500592444,0.68123014,216.7,216.65,18.00050013]
[1734500592763,0.68123014,216.72,216.65,18.00050013]
[1734500592934,18.00050013,216.71,216.63,18.00050013]
[1734500593135,18.00050013,216.69,216.61,18.00050013]
[1734500593442,0.68123014,216.68,216.61,18.00050013]
[1734500593655,0.68123014,216.68,216.63,18.00050013]
[1734500593834,27.61,216.84,216.63,18.00050013]
[1734500593835,23.776884,216.69,216.63,18.00050013]
[1734500594035,20.0,216.7,216.65,18.00050013]
[1734500594231,0.68123014,216.69,216.65,18.00050013]
[1734500595623,23.776884,216.68,216.65,18.00050013]
[1734500596028,23.776884,216.68,216.63,18.00050013]
[1734500596246,23.776884,216.66,216.63,18.00050013]
[1734500596551,23.776884,216.68,216.63,18.00050013]
[1734500596552,24.45811414,216.68,216.63,18.00050013]
[1734500597443,24.45811414,216.68,216.61,18.00050013]
[1734500597831,24.45811414,216.68,216.63,18.00050013]
[1734500598342,23.776884,216.69,216.65,18.00050013]
[1734500598534,24.45811414,216.69,216.65,18.00050013]
[1734500598725,24.45811414,216.69,216.57,6.5083]
[1734500598931,42.45861427,216.69,216.61,18.00050013]
[1734500599557,24.45811414,216.69,216.63,18.00050013]
[1734500600931,24.45811414,216.69,216.57,6.5083]
[1734500601131,42.45861427,216.69,216.61,18.00050013]
[1734500602074,23.776884,216.67,216.61,18.00050013]
[1734500602530,23.776884,216.69,216.61,18.00050013]
[1734500602726,23.776884,216.67,216.61,18.00050013]
[1734500603166,23.776884,216.67,216.63,18.00050013]
[1734500606169,0.68123014,216.8,216.65,18.00050013]
[1734500606384,18.00050013,216.77,216.69,18.00050013]
[1734500606581,0.68123014,216.76,216.69,18.00050013]
[1734500606995,18.00050013,216.75,216.67,18.00050013]
[1734500607282,18.00050013,216.73,216.65,18.00050013]
[1734500607590,23.776884,216.71,216.64,18.00050013]
[1734500607789,23.776884,216.69,216.64,18.00050013]
[1734500608671,0.68123014,216.68,216.64,18.00050013]
[1734500608991,23.776884,216.67,216.64,18.00050013]
[1734500610370,23.776884,216.67,216.66,18.00050013]
[1734500610788,0.68123014,216.73,216.66,18.00050013]
[1734500610989,18.00050013,216.74,216.66,18.00050013]
[1734500611287,0.68123014,216.73,216.66,18.00050013]
[1734500611675,0.68123014,216.73,216.64,18.00050013]
[1734500612182,23.776884,216.72,216.64,18.00050013]
[1734500613280,23.776884,216.7,216.64,18.00050013]
[1734500614302,18.00050013,216.81,216.62,18.00050013]
[1734500614303,23.776884,216.68,216.62,18.00050013]
[1734500614477,23.776884,216.68,216.64,18.00050013]
[1734500614795,23.776884,216.7,216.64,18.00050013]
[1734500615204,23.776884,216.68,216.64,18.00050013]
[1734500615373,23.776884,216.68,216.62,18.00050013]
[1734500615575,23.776884,216.66,216.6,18.00050013]
[1734500615902,23.776884,216.64,216.58,18.00050013]
[1734500616198,23.776884,216.64,216.56,2.1399]
[1734500616199,23.776884,216.62,216.56,20.14040013]
[1734500616406,23.776884,216.6,216.56,20.14040013]
[1734500617002,23.776884,216.62,216.55,18.00050013]
[1734500617173,23.776884,216.6,216.54,18.00050013]
[1734500617373,23.776884,216.58,216.53,18.00050013]
[1734500617609,23.776884,216.56,216.5,2.254]
[1734500617909,23.776884,216.54,216.5,2.254]
[1734500618326,18.00050013,216.57,216.5,2.254]
[1734500618327,23.776884,216.56,216.5,2.254]
[1734500618477,23.776884,216.54,216.5,2.254]
[1734500618774,0.68123014,216.53,216.5,18.00050013]
[1734500618974,18.00050013,216.59,216.51,18.00050013]
[1734500619281,23.776884,216.58,216.54,18.00050013]
[1734500619481,24.45811414,216.6,216.54,18.00050013]
[1734500619887,0.68123014,216.6,216.56,18.00050013]
[1734500620200,18.00050013,216.66,216.59,18.00050013]
[1734500620382,0.68123014,216.65,216.59,18.00050013]
[1734500620587,0.68123014,216.65,216.58,18.00050013]
[1734500620796,0.68123014,216.65,216.59,18.00050013]
[1734500620992,18.68173027,216.65,216.57,18.00050013]
[1734500621191,23.776884,216.64,216.57,18.00050013]
[1734500621398,23.776884,216.62,216.57,18.00050013]
[1734500621700,23.776884,216.62,216.58,18.00050013]
[1734500621892,23.776884,216.64,216.57,18.00050013]
[1734500622095,23.776884,216.62,216.57,18.00050013]
[1734500623002,24.45811414,216.64,216.57,18.00050013]
[1734500624289,23.776884,216.64,216.59,18.00050013]
[1734500624514,0.68123014,216.66,216.61,18.00050013]
[1734500625209,18.68173027,216.66,216.59,18.00050013]
[1734500625696,23.776884,216.65,216.59,18.00050013]
[1734500625897,23.776884,216.63,216.57,18.00050013]
[1734500626087,23.776884,216.61,216.57,18.00050013]
[1734500628911,23.776884,216.59,216.53,18.00050013]
[1734500629218,23.776884,216.59,216.55,18.00050013]
[1734500629394,18.00050013,216.66,216.57,18.00050013]
[1734500629589,24.45811414,216.65,216.57,18.00050013]
[1734500631115,24.45811414,216.65,216.59,18.00050013]
[1734500631315,18.00050013,216.68,216.59,18.00050013]
[1734500631606,0.68123014,216.74,216.61,18.00050013]
[1734500631607,18.00050013,216.7,216.61,18.00050013]
[1734500631823,0.68123014,216.69,216.61,18.00050013]
[1734500633593,23.776884,216.68,216.61,18.00050013]
[1734500634517,23.776884,216.66,216.61,18.00050013]
[1734500634692,23.776884,216.64,216.57,26.48700013]
[1734500634896,23.776884,216.62,216.57,26.48700013]
[1734500635090,0.68123014,216.63,216.57,26.48700013]
[1734500635091,23.776884,216.6,216.57,2.3918]
[1734500635601,24.45811414,216.62,216.57,2.3918]
[1734500635829,24.45811414,216.62,216.57,20.39230013]
[1734500637623,24.45811414,216.62,216.57,2.3918]
[1734500639425,24.45811414,216.62,216.55,18.00050013]
[1734500640408,41.77738413,216.6,216.53,18.00050013]
[1734500640629,23.776884,216.58,216.53,18.00050013]
[1734500640830,0.68123014,216.59,216.54,18.00050013]
[1734500641018,0.68123014,216.59,216.53,18.00050013]
[1734500641358,18.00050013,216.57,216.49,18.00050013]
[1734500641516,18.00050013,216.55,216.48,18.00050013]
[1734500641827,18.68173027,216.56,216.49,18.00050013]
[1734500642217,18.68173027,216.56,216.48,18.00050013]
[1734500642539,18.68173027,216.56,216.46,8.4865]
[1734500642540,41.77738413,216.53,216.46,20.39230013]
[1734500642734,18.68173027,216.52,216.46,2.3918]
[1734500643541,0.68123014,216.52,216.46,2.3918]
[1734500643836,0.68123014,216.52,216.41,6.0947]
[1734500643837,41.77738413,216.51,216.44,18.00050013]
[1734500644039,0.68123014,216.5,216.44,18.00050013]
[1734500644213,0.68123014,216.5,216.45,18.00050013]
[1734500644718,23.776884,216.55,216.48,18.00050013]
[1734500644924,18.00050013,216.53,216.46,18.00050013]
[1734500645120,0.68123014,216.52,216.46,18.00050013]
[1734500645326,0.68123014,216.52,216.47,18.00050013]
[1734500645522,0.68123014,216.52,216.46,18.00050013]
[1734500646327,0.68123014,216.52,216.47,18.00050013]
[1734500646535,24.45811414,216.53,216.47,18.00050013]
[1734500646733,18.00050013,216.56,216.49,18.00050013]
[1734500647053,18.00050013,216.6,216.53,18.00050013]
[1734500647340,0.68123014,216.59,216.54,18.00050013]
[1734500647579,18.00050013,216.63,216.56,18.00050013]
[1734500647837,18.00050013,216.61,216.53,18.00050013]
[1734500648013,0.68123014,216.6,216.53,18.00050013]
[1734500648636,0.68123014,216.6,216.54,18.00050013]
[1734500648947,18.00050013,216.57,216.5,18.00050013]
[1734500649153,41.77738413,216.54,216.46,18.00050013]
[1734500649309,41.77738413,216.54,216.45,18.00050013]
[1734500649310,41.77738413,216.52,216.45,18.00050013]
[1734500649519,0.68123014,216.51,216.45,18.00050013]
[1734500649859,0.68123014,216.51,216.44,18.00050013]
[1734500650219,41.77738413,216.48,216.4,20.44990013]
[1734500650446,23.776884,216.46,216.4,20.44990013]
[1734500650741,0.68123014,216.45,216.4,20.44990013]
[1734500650946,23.776884,216.46,216.41,18.00050013]
[1734500651237,24.45811414,216.47,216.41,18.00050013]
[1734500652335,18.00050013,216.53,216.45,18.00050013]
[1734500652542,0.68123014,216.53,216.46,18.00050013]
[1734500652742,18.00050013,216.49,216.42,18.00050013]
[1734500652953,0.68123014,216.48,216.42,18.00050013]
[1734500653250,18.00050013,216.47,216.38,18.00050013]
[1734500653546,18.00050013,216.45,216.38,18.00050013]
[1734500653774,18.00050013,216.45,216.37,0.1313736]
[1734500653775,23.776884,216.43,216.37,0.1313736]
[1734500653926,0.68123014,216.42,216.37,0.1313736]
[1734500655788,23.0463,216.54,216.37,0.1313736]
[1734500655789,18.00050013,216.45,216.38,18.00050013]
[1734500655993,0.68123014,216.44,216.39,18.00050013]
[1734500656275,24.45811414,216.45,216.39,18.00050013]
[1734500656632,0.68123014,216.45,216.39,18.00050013]
[1734500657479,18.00050013,216.48,216.4,18.00050013]
[1734500657770,18.00050013,216.5,216.43,18.00050013]
[1734500657973,0.68123014,216.49,216.43,18.00050013]
[1734500658161,0.68123014,216.49,216.42,18.00050013]
[1734500658537,18.68173027,216.49,216.42,18.00050013]
[1734500658739,0.68123014,216.49,216.42,18.00050013]
[1734500658957,18.00050013,216.52,216.45,18.00050013]
[1734500659145,0.68123014,216.51,216.45,18.00050013]
[1734500659455,0.68123014,216.52,216.47,18.00050013]
[1734500659964,18.68173027,216.53,216.46,18.00050013]
[1734500660132,0.68123014,216.53,216.47,18.00050013]
[1734500660459,18.00050013,216.55,216.48,18.00050013]
[1734500660864,18.00050013,216.57,216.5,18.00050013]
[1734500661162,0.68123014,216.58,216.51,18.00050013]
[1734500661163,0.68123014,216.56,216.51,18.00050013]
[1734500661559,18.68173027,216.58,216.51,18.00050013]
[1734500661872,0.68123014,216.57,216.52,18.00050013]
[1734500662043,0.68123014,216.58,216.52,18.00050013]
[1734500662668,18.00050013,216.55,216.48,18.00050013]
[1734500662974,0.68123014,216.54,216.48,18.00050013]
[1734500663140,18.68173027,216.54,216.47,18.00050013]
[1734500664342,0.68123014,216.54,216.48,18.00050013]
[1734500664993,18.00050013,216.57,216.5,18.00050013]
[1734500665277,18.00050013,216.55,216.47,18.00050013]
[1734500665458,18.00050013,216.52,216.46,2.3615]
[1734500665768,18.68173027,216.51,216.44,18.00050013]
[1734500667863,0.68123014,216.51,216.44,18.00050013]
[1734500668255,0.68123014,216.52,216.46,18.00050013]
[1734500668464,18.68173027,216.52,216.44,18.00050013]
[1734500668651,0.68123014,216.51,216.44,18.00050013]
[1734500669545,18.68173027,216.51,216.43,18.00050013]
[1734500670163,0.68123014,216.51,216.44,18.00050013]
[1734500670367,0.68123014,216.51,216.45,18.00050013]
[1734500671073,18.68173027,216.55,216.48,18.00050013]
[1734500671284,0.68123014,216.54,216.47,18.00050013]
[1734500671450,18.00050013,216.53,216.45,18.00050013]
[1734500671652,0.68123014,216.52,216.45,18.00050013]
[1734500673260,18.68173027,216.52,216.45,18.00050013]
[1734500673459,18.00050013,216.5,216.42,24.58320013]
[1734500673667,18.00050013,216.48,216.41,20.36200013]
[1734500673856,0.68123014,216.47,216.41,20.36200013]
[1734500674255,0.68123014,216.47,216.41,2.3615]
[1734500674482,18.00050013,216.49,216.42,18.00050013]
[1734500674786,0.68123014,216.48,216.42,18.00050013]
[1734500675746,0.68123014,216.48,216.41,2.3615]
[1734500675954,18.00050013,216.47,216.41,2.3615]
[1734500676176,0.68123014,216.46,216.41,2.3615]
[1734500676869,18.00050013,216.43,216.37,0.1313736]
[1734500677073,18.00050013,216.41,216.37,0.1313736]
[1734500677398,18.68173027,216.4,216.37,0.1313736]
[1734500677599,23.776884,216.39,216.37,0.1313736]
[1734500677747,18.00050013,216.42,216.37,0.1313736]
[1734500677953,18.00050013,216.43,216.37,0.1313736]
[1734500678153,0.68123014,216.42,216.37,0.1313736]
[1734500678753,0.68123014,216.44,216.37,0.1313736]
[1734500679154,23.776884,216.43,216.37,0.1313736]
[1734500679463,0.68123014,216.42,216.37,0.1313736]
[1734500687082,11.26684718,216.46,216.38,11.26684718]
[1734500687288,11.26684718,216.48,216.4,11.26684718]
[1734500687455,0.68123014,216.47,216.37,0.82441005]
[1734500687655,11.26684718,216.5,216.42,11.26684718]
[1734500687969,0.68123014,216.49,216.42,11.26684718]
[1734500691273,11.26684718,216.5,216.43,11.26684718]
[1734500691505,11.26684718,216.51,216.43,11.26684718]
[1734500691672,11.26684718,216.49,216.41,11.26684718]
[1734500692907,11.26684718,216.47,216.39,11.26684718]
[1734500693206,0.68123014,216.46,216.39,11.26684718]
[1734500693578,0.68123014,216.46,216.37,0.1313736]
[1734500693579,11.26684718,216.45,216.38,11.26684718]
[1734500693797,11.94807732,216.44,216.37,0.1313736]
[1734500694004,11.26684718,216.45,216.37,11.39822078]
[1734500694170,0.68123014,216.44,216.37,11.39822078]
[1734500697007,11.26684718,216.45,216.37,11.39822078]
[1734500698205,11.26684718,216.47,216.39,11.26684718]
[1734500698381,0.68123014,216.46,216.39,11.26684718]
[1734500699592,11.26684718,216.47,216.39,11.26684718]
[1734500700311,0.68123014,216.46,216.39,11.26684718]
[1734500700811,11.26684718,216.45,216.37,11.39822078]
[1734500701007,11.26684718,216.43,216.37,0.1313736]
[1734500701307,11.26684718,216.41,216.37,0.1313736]
[1734500701503,0.68123014,216.4,216.37,0.1313736]
[1734500702011,11.26684718,216.42,216.37,0.1313736]
[1734500702190,0.68123014,216.41,216.37,0.1313736]
[1734500704009,11.26684718,216.42,216.37,0.1313736]
[1734500704429,0.68123014,216.41,216.37,0.1313736]
[1734500704599,11.26684718,216.38,216.37,0.1313736]
[1734500704784,11.94807732,216.38,216.37,0.1313736]
[1734500706488,35.72496132,216.38,216.37,0.1313736]
[1734500708597,35.72496132,216.38,216.24,11.26684718]
[1734500708598,20.0,216.34,216.24,11.26684718]
[1734500708780,23.776884,216.31,216.24,11.26684718]
[1734500708987,11.26684718,216.32,216.24,11.26684718]
[1734500708988,0.68123014,216.3,216.24,11.26684718]
[1734500709185,0.68123014,216.31,216.26,11.26684718]
[1734500709392,11.94807732,216.37,216.3,11.26684718]
[1734500712295,11.26684718,216.35,216.28,11.26684718]
[1734500712507,11.94807732,216.34,216.26,11.26684718]
[1734500713207,11.94807732,216.34,216.27,11.26684718]
[1734500713396,11.94807732,216.34,216.23,2.3573]
[1734500713597,11.26684718,216.32,216.24,11.26684718]
[1734500713807,0.68123014,216.31,216.25,11.26684718]
[1734500714000,0.68123014,216.31,216.26,11.26684718]
[1734500714187,11.94807732,216.35,216.27,11.26684718]
[1734500714705,23.776884,216.34,216.27,11.26684718]
[1734500714909,0.68123014,216.33,216.27,11.26684718]
[1734500715089,11.94807732,216.33,216.27,11.26684718]
[1734500715290,23.776884,216.32,216.25,11.26684718]
[1734500715610,23.776884,216.32,216.23,2.3573]
[1734500715611,23.776884,216.3,216.24,11.26684718]
[1734500715787,0.68123014,216.3,216.24,11.26684718]
[1734500716109,23.776884,216.33,216.26,11.26684718]
[1734500716312,0.68123014,216.32,216.26,11.26684718]
[1734500717009,0.68123014,216.33,216.27,11.26684718]
[1734500717196,0.68123014,216.33,216.26,11.26684718]
[1734500719005,11.26684718,216.32,216.24,11.26684718]
[1734500719213,35.04373118,216.3,216.23,2.3573]
[1734500719490,11.94807732,216.29,216.23,2.3573]
[1734500720215,23.776884,216.28,216.23,2.3573]
[1734500720387,0.68123014,216.27,216.23,2.3573]
[1734500722800,0.68123014,216.27,216.2,11.26684718]
[1734500724019,11.94807732,216.27,216.2,11.26684718]
[1734500724398,0.68123014,216.27,216.2,11.26684718]
[1734500725301,11.94807732,216.27,216.18,2.65373876]
[1734500725507,11.26684718,216.23,216.18,2.65373876]
[1734500725713,11.26684718,216.25,216.18,2.65373876]
[1734500725904,0.68123014,216.27,216.2,11.26684718]
[1734500726114,0.68123014,216.27,216.21,11.26684718]
[1734500726415,11.26684718,216.3,216.23,11.26684718]
[1734500726633,0.68123014,216.29,216.23,11.26684718]
[1734500726927,0.68123014,216.29,216.22,11.26684718]
[1734500726928,11.94807732,216.29,216.22,11.26684718]
[1734500727244,11.26684718,216.32,216.25,11.26684718]
[1734500727539,11.94807732,216.31,216.24,11.26684718]
[1734500727734,11.94807732,216.31,216.23,11.26684718]
[1734500728939,11.26684718,216.33,216.25,11.26684718]
[1734500729112,0.68123014,216.32,216.25,11.26684718]
[1734500729724,11.94807732,216.32,216.25,11.26684718]
[1734500730024,11.26684718,216.3,216.23,11.26684718]
[1734500730220,0.68123014,216.29,216.23,11.26684718]
[1734500731307,0.68123014,216.29,216.24,11.26684718]
[1734500731519,0.68123014,216.3,216.23,11.26684718]
[1734500731732,11.94807732,216.3,216.22,11.26684718]
[1734500732232,11.26684718,216.29,216.22,11.26684718]
[1734500732396,11.94807732,216.28,216.21,11.26684718]
[1734500733008,11.94807732,216.28,216.2,11.26684718]
[1734500733728,23.776884,216.27,216.2,11.26684718]
[1734500733929,0.68123014,216.26,216.2,11.26684718]
[1734500734523,0.68123014,216.27,216.22,11.26684718]